fUSD/lending_fUSD_20240919
["ID","MTS","AMOUNT","RATE_DAILY","PERIOD"]
[338540371,1726726235392,-500.0,0.00012893,2]
[338540372,1726726235402,-1600.25,0.00012893,2]
[338540373,1726726235411,-500.0,0.00012893,2]
[338540374,1726726235421,-880.72,0.00012893,2]
[338540375,1726726235430,-500.0,0.00012893,2]
[338540376,1726726235440,-583.52,0.00012893,2]
[338540377,1726726235449,-500.0,0.00012893,2]
[338540378,1726726235458,-2984.99,0.00012893,2]
[338540379,1726726235467,-4554.46,0.00012893,2]
[338540380,1726726235477,-500.0,0.00012893,2]
[338540381,1726726235486,-1342.15,0.00012893,2]
[338540382,1726726235496,-500.0,0.00012893,2]
[338540383,1726726235505,-558.56,0.00012893,2]
[338540384,1726726235515,-2868.83,0.00012893,2]
[338540385,1726726235525,-3490.59,0.00012893,2]
[338540386,1726726235535,-500.0,0.00012893,2]
[338540387,1726726235544,-960.58,0.00012893,2]
[338540388,1726726235554,-1259.38,0.00012893,2]
[338540389,1726726235564,-500.0,0.00012893,2]
[338540390,1726726235574,-500.0,0.00012893,2]
[338540391,1726726235584,-951.69,0.00012893,2]
[338540392,1726726235601,-500.0,0.00012893,2]
[338540393,1726726235610,-561.86,0.00012893,2]
[338540394,1726726235620,-8000.47,0.00012893,2]
[338540395,1726726235629,-828.93,0.00012893,2]
[338540396,1726726235639,-500.0,0.00012893,2]
[338540397,1726726235649,-500.0,0.00012893,2]
[338540398,1726726235659,-876.65,0.00012893,2]
[338540399,1726726235668,-4940.81,0.00012893,2]
[338540400,1726726235678,-500.0,0.00012893,2]
[338540401,1726726235689,-500.0,0.00012893,2]
[338540402,1726726235698,-875.12,0.00012893,2]
[338540403,1726726235708,-1531.27,0.00012893,2]
[338540404,1726726235717,-1045.53,0.00012893,2]
[338540405,1726726235726,-4934.78,0.00012893,2]
[338540406,1726726235736,-1968.35,0.00012893,2]
[338540407,1726726235745,-500.0,0.00012893,2]
[338540408,1726726235754,-500.0,0.00012893,2]
[338540409,1726726235764,-500.0,0.00012893,2]
[338540410,1726726235774,-527.69,0.00012893,2]
[338540411,1726726235783,-818.34,0.00012893,2]
[338540412,1726726235793,-500.0,0.00012893,2]
[338540413,1726726235802,-3041.37,0.00012893,2]
[338540414,1726726235811,-633.53,0.00012893,2]
[338540415,1726726235821,-500.0,0.00012893,2]
[338540416,1726726235830,-1306.46,0.00012893,2]
[338540417,1726726235842,-1697.53,0.00012893,2]
[338540418,1726726235851,-500.0,0.00012893,2]
[338540419,1726726235861,-531.03815235,0.00012893,2]
[338540420,1726726235873,-2855.41,0.00012893,2]
[338540421,1726726235883,-500.0,0.00012893,2]
[338540422,1726726235893,-1051.76,0.00012893,2]
[338540423,1726726235902,-1066.5,0.00012893,2]
[338540424,1726726235912,-1339.52,0.00012893,2]
[338540425,1726726235921,-2356.18,0.00012893,2]
[338540426,1726726235930,-506.17,0.00012893,2]
[338540427,1726726235940,-1765.06,0.00012893,2]
[338540428,1726726235949,-1423.16,0.00012893,2]
[338540429,1726726235959,-823.48,0.00012893,2]
[338540430,1726726235969,-500.0,0.00012893,2]
[338540431,1726726235979,-946.52,0.00012893,2]
[338540432,1726726235988,-500.0,0.00012893,2]
[338540433,1726726235997,-500.0,0.00012893,2]
[338540434,1726726236007,-2012.58,0.00012893,2]
[338540435,1726726236017,-673.3,0.00012893,2]
[338540436,1726726236026,-500.0,0.00012893,2]
[338540437,1726726236038,-500.0,0.00012893,2]
[338540438,1726726236048,-500.0,0.00012893,2]
[338540439,1726726236059,-2978.69,0.00012893,2]
[338540440,1726726236068,-693.84,0.00012893,2]
[338540441,1726726236078,-3072.66,0.00012893,2]
[338540442,1726726236089,-633.05,0.00012893,2]
[338540443,1726726236102,-1806.23,0.00012893,2]
[338540444,1726726236112,-1203.55,0.00012893,2]
[338540445,1726726236121,-878.4,0.00012893,2]
[338540446,1726726236131,-518.32,0.00012893,2]
[338540447,1726726236142,-1000.0,0.00012893,2]
[338540448,1726726236151,-579.58,0.00012893,2]
[338540449,1726726236162,-1413.6,0.00012893,2]
[338540450,1726726236173,-652.59,0.00012893,2]
[338540451,1726726236182,-500.0,0.00012893,2]
[338540452,1726726236193,-1726.39,0.00012893,2]
[338540453,1726726236203,-500.0,0.00012893,2]
[338540454,1726726236212,-501.17,0.00012893,2]
[338540455,1726726236222,-1146.17,0.00012893,2]
[338540456,1726726236232,-1791.58,0.00012893,2]
[338540457,1726726236241,-2194.34,0.00012893,2]
[338540458,1726726236251,-1031.8,0.00012893,2]
[338540459,1726726236261,-1020.12,0.00012893,2]
[338540460,1726726236271,-859.05,0.00012893,2]
[338540461,1726726236281,-500.0,0.00012894,2]
[338540462,1726726236291,-311.40844283,0.00012894,2]
[338540463,1726726236300,-500.0,0.00012894,2]
[338540464,1726726236310,-1311.15,0.00012894,2]
[338540465,1726726236319,-725.52,0.00012894,2]
[338540466,1726726236329,-1025.01,0.00012894,2]
[338540467,1726726236340,-1155.69,0.00012894,2]
[338540468,1726726236350,-500.0,0.00012894,2]
[338540469,1726726236360,-500.0,0.00012894,2]
[338540470,1726726236370,-999.15,0.00012894,2]
[338540471,1726726236380,-378.42414748,0.00012894,2]
[338540472,1726726236390,-500.0,0.00012894,2]
[338540473,1726726236400,-500.0,0.00012894,2]
[338540474,1726726236410,-1678.98,0.00012894,2]
[338540475,1726726236420,-500.0,0.00012894,2]
[338540476,1726726236430,-629.03,0.00012894,2]
[338540477,1726726236439,-500.0,0.00012894,2]
[338540478,1726726236449,-1299.53,0.00012894,2]
[338540479,1726726236458,-897.93,0.00012894,2]
[338540480,1726726236468,-500.0,0.00012894,2]
[338540481,1726726236478,-500.0,0.00012894,2]
[338540482,1726726236487,-1690.14,0.00012894,2]
[338540483,1726726236496,-625.51,0.00012894,2]
[338540484,1726726236506,-500.0,0.00012894,2]
[338540485,1726726236515,-1431.49,0.00012894,2]
[338540486,1726726236524,-559.2,0.00012894,2]
[338540487,1726726236533,-500.0,0.00012894,2]
[338540488,1726726236544,-500.0,0.00012894,2]
[338540489,1726726236554,-500.0,0.00012894,2]
[338540490,1726726236643,-500.0,0.00012894,2]
[338540491,1726726236653,-500.0,0.00012894,2]
[338540492,1726726236662,-797.44,0.00012894,2]
[338540493,1726726236671,-711.73,0.00012894,2]
[338540494,1726726236681,-500.0,0.00012894,2]
[338540495,1726726236691,-500.0,0.00012894,2]
[338540496,1726726236700,-500.0,0.00012894,2]
[338540497,1726726236708,-577.66,0.00012894,2]
[338540498,1726726236718,-500.97,0.00012894,2]
[338540499,1726726236727,-500.0,0.00012894,2]
[338540500,1726726236736,-581.11,0.00012894,2]
[338540501,1726726236744,-1206.87,0.00012894,2]
[338540502,1726726236754,-623.23,0.00012894,2]
[338540503,1726726236763,-685.27,0.00012894,2]
[338540504,1726726236772,-959.9,0.00012894,2]
[338540505,1726726236781,-1068.24,0.00012894,2]
[338540506,1726726236790,-708.41,0.00012894,2]
[338540507,1726726236800,-500.0,0.00012894,2]
[338540508,1726726236810,-527.3,0.00012894,2]
[338540509,1726726236819,-500.0,0.00012894,2]
[338540510,1726726236828,-500.0,0.00012894,2]
[338540511,1726726236838,-500.0,0.00012894,2]
[338540512,1726726236847,-500.0,0.00012894,2]
[338540513,1726726236856,-500.0,0.00012894,2]
[338540514,1726726236865,-1428.06,0.00012894,2]
[338540515,1726726236875,-500.0,0.00012894,2]
[338540516,1726726236884,-500.0,0.00012894,2]
[338540517,1726726236893,-500.0,0.00012894,2]
[338540518,1726726236903,-500.0,0.00012894,2]
[338540519,1726726236912,-684.88,0.00012894,2]
[338540520,1726726236921,-513.79,0.00012894,2]
[338540521,1726726236931,-1390.29,0.00012894,2]
[338540522,1726726236940,-500.0,0.00012894,2]
[338540523,1726726236949,-500.0,0.00012894,2]
[338540524,1726726236959,-500.0,0.00012894,2]
[338540525,1726726236968,-500.0,0.00012894,2]
[338540526,1726726236977,-1280.76,0.00012894,2]
[338540527,1726726236986,-517.94,0.00012894,2]
[338540528,1726726236995,-500.0,0.00012894,2]
[338540529,1726726237005,-500.0,0.00012894,2]
[338540530,1726726237014,-428.67,0.00012894,2]
[338540531,1726726237024,-500.0,0.00012894,2]
[338540532,1726726237033,-1027.37,0.00012894,2]
[338540533,1726726237042,-1105.03,0.00012894,2]
[338540534,1726726237051,-583.41,0.00012894,2]
[338540535,1726726237060,-500.0,0.00012894,2]
[338540536,1726726237069,-500.0,0.00012894,2]
[338540537,1726726237079,-641.74,0.00012894,2]
[338540538,1726726237089,-584.79,0.00012894,2]
[338540539,1726726237103,-500.0,0.00012894,2]
[338540540,1726726237112,-373.87,0.00012894,2]
[338540541,1726726237121,-500.0,0.00012894,2]
[338540542,1726726237131,-500.0,0.00012894,2]
[338540543,1726726237141,-500.0,0.00012894,2]
[338540544,1726726237150,-1531.72,0.00012894,2]
[338540545,1726726237159,-500.0,0.00012894,2]
[338540546,1726726237169,-617.17,0.00012894,2]
[338540547,1726726237179,-610.62,0.00012894,2]
[338540548,1726726237189,-500.0,0.00012894,2]
[338540549,1726726237198,-859.98,0.00012894,2]
[338540550,1726726237207,-1930.85,0.00012894,2]
[338540551,1726726237216,-676.16,0.00012894,2]
[338540552,1726726237225,-808.39,0.00012894,2]
[338540553,1726726237234,-1043.04,0.00012894,2]
[338540554,1726726237244,-732.6,0.00012894,2]
[338540555,1726726237253,-500.0,0.00012894,2]
[338540556,1726726237263,-526.12,0.00012894,2]
[338540557,1726726237272,-988.89,0.00012894,2]
[338540558,1726726237281,-1108.54,0.00012894,2]
[338540559,1726726237291,-500.0,0.00012894,2]
[338540560,1726726237300,-1072.8,0.00012894,2]
[338540561,1726726237309,-560.39878378,0.00012894,2]
[338540562,1726726237319,-500.0,0.00012894,2]
[338540563,1726726237328,-1140.61,0.00012894,2]
[338540564,1726726237337,-500.0,0.00012894,2]
[338540565,1726726237347,-664.19,0.00012894,2]
[338540566,1726726237359,-327.25117268,0.00012894,2]
[338540567,1726726237368,-1101.06,0.00012894,2]
[338540568,1726726237378,-500.0,0.00012894,2]
[338540569,1726726237388,-500.0,0.00012894,2]
[338540570,1726726237397,-934.84,0.00012894,2]
[338540571,1726726237409,-966.26,0.00012894,2]
[338540572,1726726237421,-1172.45,0.00012894,2]
[338540573,1726726237430,-881.73,0.00012894,2]
[338540574,1726726237439,-1961.74,0.00012894,2]
[338540575,1726726237448,-901.42,0.00012894,2]
[338540576,1726726237458,-500.0,0.00012894,2]
[338540577,1726726237467,-1876.29,0.00012894,2]
[338540578,1726726237476,-500.0,0.00012894,2]
[338540579,1726726237485,-500.0,0.00012894,2]
[338540580,1726726237495,-882.04,0.00012894,2]
[338540581,1726726237504,-500.0,0.00012894,2]
[338540582,1726726237514,-500.0,0.00012894,2]
[338540583,1726726237526,-500.0,0.00012894,2]
[338540584,1726726237539,-519.1,0.00012894,2]
[338540585,1726726237551,-500.0,0.00012894,2]
[338540586,1726726237563,-500.0,0.00012894,2]
[338540587,1726726237572,-1138.27,0.00012894,2]
[338540588,1726726237583,-500.0,0.00012894,2]
[338540589,1726726237593,-500.0,0.00012894,2]
[338540590,1726726237602,-2184.95,0.00012894,2]
[338540591,1726726237611,-1263.15,0.00012894,2]
[338540592,1726726237620,-500.0,0.00012894,2]
[338540593,1726726237630,-527.14,0.00012894,2]
[338540594,1726726237639,-711.28,0.00012894,2]
[338540595,1726726237648,-500.0,0.00012894,2]
[338540596,1726726237657,-1885.04,0.00012894,2]
[338540597,1726726237667,-500.0,0.00012894,2]
[338540598,1726726237676,-500.0,0.00012894,2]
[338540599,1726726237686,-1029.76,0.00012894,2]
[338540600,1726726237695,-569.29,0.00012894,2]
[338540601,1726726237704,-500.0,0.00012894,2]
[338540603,1726726237714,-500.0,0.00012894,2]
[338540604,1726726237723,-658.37,0.00012894,2]
[338540606,1726726237732,-3711.12,0.00012894,2]
[338540607,1726726237742,-860.39,0.00012894,2]
[338540608,1726726237751,-500.0,0.00012894,2]
[338540609,1726726237760,-500.0,0.00012894,2]
[338540610,1726726237770,-500.0,0.00012894,2]
[338540611,1726726237779,-535.41,0.00012894,2]
[338540612,1726726237789,-556.76,0.00012894,2]
[338540613,1726726237799,-500.0,0.00012894,2]
[338540614,1726726237808,-500.0,0.00012894,2]
[338540615,1726726237818,-1868.78,0.00012894,2]
[338540616,1726726237827,-500.0,0.00012894,2]
[338540618,1726726237837,-4272.35,0.00012894,2]
[338540619,1726726237846,-500.0,0.00012894,2]
[338540620,1726726237855,-2367.01,0.00012894,2]
[338540621,1726726237864,-500.0,0.00012894,2]
[338540622,1726726237873,-827.37,0.00012894,2]
[338540623,1726726237882,-4740.62,0.00012894,2]
[338540624,1726726237892,-500.0,0.00012894,2]
[338540626,1726726237901,-644.61,0.00012894,2]
[338540628,1726726237910,-1582.0,0.00012894,2]
[338540630,1726726237919,-760.94,0.00012894,2]
[338540632,1726726237929,-662.73,0.00012894,2]
[338540633,1726726237938,-500.0,0.00012894,2]
[338540634,1726726237947,-500.0,0.00012894,2]
[338540635,1726726237956,-1516.71,0.00012894,2]
[338540636,1726726237965,-500.0,0.00012894,2]
[338540637,1726726237974,-1763.84,0.00012894,2]
[338540638,1726726237984,-500.0,0.00012894,2]
[338540639,1726726237993,-1565.25,0.00012894,2]
[338540640,1726726238002,-500.0,0.00012894,2]
[338540642,1726726238011,-630.07,0.00012894,2]
[338540643,1726726238020,-500.0,0.00012894,2]
[338540644,1726726238030,-500.0,0.00012894,2]
[338540645,1726726238039,-500.0,0.00012894,2]
[338540646,1726726238049,-500.0,0.00012894,2]
[338540647,1726726238058,-466.04808476,0.00012894,2]
[338540648,1726726238067,-737.0,0.00012894,2]
[338540649,1726726238076,-500.0,0.00012894,2]
[338540650,1726726238087,-1390.69,0.00012894,2]
[338540651,1726726238099,-500.0,0.00012894,2]
[338540652,1726726238108,-935.35,0.00012894,2]
[338540653,1726726238117,-500.0,0.00012894,2]
[338540654,1726726238127,-500.0,0.00012894,2]
[338540655,1726726238136,-950.1,0.00012894,2]
[338540656,1726726238147,-624.02,0.00012894,2]
[338540657,1726726238156,-5538.17,0.00012894,2]
[338540658,1726726238166,-862.82,0.00012894,2]
[338540659,1726726238176,-500.0,0.00012894,2]
[338540660,1726726238186,-2060.05,0.00012894,2]
[338540661,1726726238195,-500.0,0.00012894,2]
[338540662,1726726238205,-1787.23,0.00012894,2]
[338540663,1726726238214,-644.69,0.00012894,2]
[338540664,1726726238225,-768.85,0.00012894,2]
[338540665,1726726238234,-3039.04,0.00012894,2]
[338540666,1726726238243,-1823.86,0.00012894,2]
[338540667,1726726238252,-500.0,0.00012894,2]
[338540668,1726726238262,-500.0,0.00012894,2]
[338540669,1726726238271,-2159.79,0.00012894,2]
[338540670,1726726238281,-500.0,0.00012894,2]
[338540671,1726726238290,-1118.45,0.00012894,2]
[338540672,1726726238299,-500.0,0.00012894,2]
[338540673,1726726238308,-500.0,0.00012894,2]
[338540674,1726726238317,-500.0,0.00012894,2]
[338540675,1726726238326,-3265.76,0.00012894,2]
[338540676,1726726238336,-500.0,0.00012894,2]
[338540677,1726726238345,-1756.60502552,0.00012894,2]
[338540678,1726726238369,-1575.33497448,0.00012894,2]
[338540679,1726726238378,-500.0,0.00012894,2]
[338540680,1726726238387,-562.41414087,0.00012894,2]
[338540681,1726726238402,-244.17585913,0.00012894,2]
[338540682,1726726238411,-500.0,0.00012894,2]
[338540683,1726726238420,-3132.86,0.00012894,2]
[338540684,1726726238429,-630.58,0.00012894,2]
[338540685,1726726238438,-1453.42,0.00012894,2]
[338540686,1726726238448,-878.15,0.00012894,2]
[338540687,1726726238457,-500.0,0.00012894,2]
[338540689,1726726238466,-500.0,0.00012894,2]
[338540691,1726726238476,-137.72994523,0.00012894,2]
[338540693,1726726238487,-923.85005477,0.00012894,2]
[338540695,1726726238495,-500.0,0.00012894,2]
[338540697,1726726238505,-500.0,0.00012894,2]
[338540699,1726726238514,-1028.91,0.00012894,2]
[338540701,1726726238523,-500.0,0.00012894,2]
[338540702,1726726238532,-213.83526953,0.00012894,2]
[338540705,1726726238541,-500.0,0.00012894,2]
[338540708,1726726238550,-500.0,0.00012894,2]
[338540711,1726726238560,-500.0,0.00012894,2]
[338540714,1726726238569,-322.56769143,0.00012894,2]
[338540717,1726726238578,-500.0,0.00012894,2]
[338540720,1726726238588,-989.29,0.00012894,2]
[338540722,1726726238603,-500.0,0.00012894,2]
[338540725,1726726238612,-500.0,0.00012894,2]
[338540726,1726726238621,-500.0,0.00012894,2]
[338540728,1726726238630,-500.0,0.00012894,2]
[338540729,1726726238639,-500.0,0.00012895,2]
[338540731,1726726238648,-654.62,0.00012895,2]
[338540733,1726726238657,-766.03,0.00012895,2]
[338540735,1726726238666,-802.51,0.00012895,2]
[338540737,1726726238676,-500.0,0.00012895,2]
[338540738,1726726238685,-815.7,0.00012895,2]
[338540740,1726726238694,-1292.07,0.00012895,2]
[338540742,1726726238703,-500.0,0.00012895,2]
[338540743,1726726238712,-521.87,0.00012895,2]
[338540744,1726726238721,-500.0,0.00012895,2]
[338540745,1726726238730,-858.77,0.00012895,2]
[338540746,1726726238739,-500.0,0.00012895,2]
[338540747,1726726238748,-500.0,0.00012895,2]
[338540748,1726726238757,-613.1,0.00012895,2]
[338540749,1726726238766,-500.0,0.00012895,2]
[338540750,1726726238775,-500.0,0.00012895,2]
[338540751,1726726238784,-500.0,0.00012895,2]
[338540752,1726726238795,-500.0,0.00012895,2]
[338540753,1726726238804,-500.0,0.00012895,2]
[338540754,1726726238813,-500.0,0.00012895,2]
[338540755,1726726238822,-500.0,0.00012895,2]
[338540756,1726726238831,-599.1,0.00012895,2]
[338540757,1726726238843,-500.0,0.00012895,2]
[338540758,1726726238853,-654.52,0.00012895,2]
[338540759,1726726238862,-500.0,0.00012895,2]
[338540760,1726726238871,-253.42492702,0.00012895,2]
[338540761,1726726238881,-500.0,0.00012895,2]
[338540762,1726726238891,-500.0,0.00012895,2]
[338540763,1726726238900,-500.0,0.00012895,2]
[338540764,1726726238910,-983.99,0.00012895,2]
[338540765,1726726238920,-385.01,0.00012895,2]
[338540766,1726726238929,-500.0,0.00012895,2]
[338540767,1726726238938,-500.0,0.00012895,2]
[338540768,1726726238947,-500.0,0.00012895,2]
[338540769,1726726238956,-500.0,0.00012895,2]
[338540770,1726726238966,-751.25,0.00012895,2]
[338540771,1726726238975,-500.0,0.00012895,2]
[338540772,1726726238984,-500.0,0.00012895,2]
[338540773,1726726238994,-500.0,0.00012895,2]
[338540774,1726726239003,-500.0,0.00012895,2]
[338540775,1726726239012,-500.0,0.00012895,2]
[338540776,1726726239022,-897.92,0.00012895,2]
[338540777,1726726239031,-2171.2,0.00012895,2]
[338540778,1726726239040,-1976.64,0.00012895,2]
[338540779,1726726239050,-1541.26,0.00012895,2]
[338540780,1726726239059,-978.64,0.00012895,2]
[338540781,1726726239068,-500.0,0.00012895,2]
[338540782,1726726239078,-758.56,0.00012895,2]
[338540783,1726726239089,-500.0,0.00012895,2]
[338540784,1726726239102,-972.65,0.00012895,2]
[338540785,1726726239112,-500.0,0.00012895,2]
[338540786,1726726239121,-699.78,0.00012895,2]
[338540787,1726726239131,-500.0,0.00012895,2]
[338540788,1726726239141,-461.12997995,0.00012895,2]
[338540789,1726726239571,-349.62002005,0.00012895,2]
[338540790,1726726239581,-48.43284496,0.00012895,2]
[338540791,1726726239594,-541.50715504,0.00012895,2]
[338540792,1726726239604,-500.0,0.00012895,2]
[338540793,1726726239614,-731.77,0.00012895,2]
[338540794,1726726239624,-737.47,0.00012895,2]
[338540795,1726726239634,-500.0,0.00012895,2]
[338540796,1726726239643,-875.32,0.00012895,2]
[338540797,1726726239652,-13.93284496,0.00012895,2]
[338540798,1726726239669,-486.06715504,0.00012895,2]
[338540799,1726726239678,-500.0,0.00012895,2]
[338540800,1726726239688,-396.0,0.00012895,2]
[338540801,1726726239698,-4828.93284496,0.000129,2]
[338540802,1726726239709,-539.47059194,0.000129,2]
[338540803,1726726239721,-2481.20419989,0.000129,2]
[338540804,1726726239733,-619.14994573,0.000129,2]
[338540805,1726726239744,-904.08234998,0.000129,2]
[338540806,1726726239755,-480.31813747,0.000129,2]
[338540807,1726726239775,-8969.12578278,0.000129,2]
[338540808,1726726239787,-14722.43714725,0.000129,2]
[338540809,1726726239797,-162.14826699,0.000129,2]
[338540810,1726726239807,-237.85037377,0.000129,2]
[338540811,1726726239817,-174.17734119,0.000129,2]
[338540812,1726726239826,-150.0,0.00012905,2]
[338540813,1726726239835,-150.0,0.00012914,2]
[338540814,1726726239846,-500.0,0.00012973,2]
[338540816,1726726239856,-286.33869816,0.00012989,2]
[338540818,1726726239865,-284.046,0.00012993,2]
[338540819,1726726239875,-700.0,0.00013,2]
[338540820,1726726239884,-186826.42980569,0.00013,2]
[338540825,1726726239896,-6558.09753364,0.00013,2]
[338540832,1726726241002,-500.0,0.00012973,2]
[338540833,1726726241012,-500.0,0.00012973,2]
[338540834,1726726241022,-120747.27449218,0.00013,2]
[338540835,1726726241032,-168889.02483738,0.00013,2]
[338540836,1726726241044,-2388.94041669,0.00013,2]
[338540837,1726726241055,-2593.51934227,0.00013,2]
[338540838,1726726241068,-3216.6943052,0.00013,2]
[338540839,1726726241079,-1919.49092263,0.00013,2]
[338540840,1726726241091,-1921.64848006,0.00013,2]
[338540841,1726726241109,-394.14575585,0.00013,2]
[338540842,1726726241121,-775.61553959,0.00013,2]
[338540843,1726726241132,-435.35854429,0.00013,2]
[338540844,1726726241148,-433.07028882,0.00013,2]
[338540845,1726726241160,-3125.7061928,0.00013,2]
[338540846,1726726241172,-884.28010879,0.00013,2]
[338540847,1726726241184,-965.47893929,0.00013,2]
[338540848,1726726241201,-3261632.19198001,0.00013,2]
[338540849,1726726241210,-744730.18832825,0.00013,2]
[338540850,1726726241220,-1100.0,0.00013,2]
[338540851,1726726241230,-2000.0,0.00013,2]
[338540852,1726726241240,-166.01374378,0.00013,2]
[338540853,1726726241250,-151.0,0.00013,2]
[338540854,1726726241260,-151.0,0.00013,2]
[338540855,1726726241269,-151.0,0.00013,2]
[338540856,1726726241279,-4219.98350551,0.00013,2]
[338540857,1726726241289,-151.0,0.00013,2]
[338540858,1726726241299,-151.0,0.00013,2]
[338540859,1726726241308,-151.0,0.00013,2]
[338540860,1726726241318,-151.454359,0.00013,2]
[338540861,1726726241327,-151.0,0.00013,2]
[338540862,1726726241338,-151.0,0.00013,2]
[338540863,1726726241349,-151.0,0.00013,2]
[338540864,1726726241359,-173.139632,0.00013,2]
[338540865,1726726241368,-2108.54500636,0.00013027,2]
[338540866,1726726241377,-4213.96,0.00013166,2]
[338540867,1726726241387,-5371.56,0.00013166,2]
[338540868,1726726241396,-1044.14,0.00013166,2]
[338540869,1726726241406,-3226.68,0.00013166,2]
[338540870,1726726241415,-2003.73,0.00013166,2]
[338540871,1726726241424,-4301.42,0.00013166,2]
[338540872,1726726241434,-637.47,0.00013166,2]
[338540873,1726726241444,-2699.44,0.00013166,2]
[338540874,1726726241453,-3577.14,0.00013166,2]
[338540875,1726726241463,-9641.04,0.00013166,2]
[338540876,1726726241473,-500.0,0.00013166,2]
[338540877,1726726241483,-915.94,0.00013166,2]
[338540878,1726726241492,-500.0,0.00013166,2]
[338540879,1726726241502,-6308.27,0.00013166,2]
[338540880,1726726241511,-4131.7,0.00013166,2]
[338540881,1726726241521,-1347.94,0.00013166,2]
[338540882,1726726241530,-1656.47,0.00013166,2]
[338540883,1726726241540,-2762.8,0.00013166,2]
[338540884,1726726241549,-603.23,0.00013166,2]
[338540885,1726726241559,-1185.65,0.00013166,2]
[338540886,1726726241568,-505.53,0.00013166,2]
[338540887,1726726241577,-2674.11,0.00013166,2]
[338540888,1726726241587,-500.0,0.00013166,2]
[338540889,1726726241596,-500.0,0.00013166,2]
[338540890,1726726241607,-744.96,0.00013166,2]
[338540891,1726726241616,-866.61,0.00013166,2]
[338540892,1726726241626,-614.78,0.00013166,2]
[338540893,1726726241635,-976.25,0.00013166,2]
[338540894,1726726241645,-3721.98,0.00013166,2]
[338540895,1726726241655,-500.0,0.00013167,2]
[338540896,1726726241664,-500.0,0.00013167,2]
[338540897,1726726241673,-1201.98,0.00013167,2]
[338540898,1726726241683,-158.993679,0.00013167,2]
[338540899,1726726241692,-500.0,0.00013167,2]
[338540900,1726726241701,-500.0,0.00013167,2]
[338540901,1726726241711,-500.0,0.00013167,2]
[338540902,1726726241721,-500.0,0.00013167,2]
[338540903,1726726241730,-512.57,0.00013167,2]
[338540904,1726726241739,-500.0,0.00013167,2]
[338540905,1726726241748,-500.0,0.00013167,2]
[338540906,1726726241758,-558.96,0.00013167,2]
[338540907,1726726241767,-2161.61,0.00013167,2]
[338540908,1726726241777,-500.0,0.00013167,2]
[338540909,1726726241786,-586.54,0.00013167,2]
[338540910,1726726241795,-1310.5,0.00013167,2]
[338540911,1726726241805,-634.58,0.00013167,2]
[338540912,1726726241814,-1721.59,0.00013167,2]
[338540913,1726726241824,-775.65,0.00013167,2]
[338540914,1726726241834,-857.42,0.00013167,2]
[338540915,1726726241851,-500.0,0.00013167,2]
[338540916,1726726241860,-2270.05,0.00013167,2]
[338540917,1726726241869,-2169.17,0.00013167,2]
[338540918,1726726241878,-1194.74,0.00013167,2]
[338540919,1726726241888,-500.0,0.00013167,2]